fUSD/lending_fUSD_20260408
["ID","MTS","AMOUNT","RATE_DAILY","PERIOD"]
[420007940,1775608244756,-150.0,0.00013973,2]
[420007941,1775608244767,-150.0,0.00013973,2]
[420007942,1775608244777,-150.0,0.00013973,2]
[420007943,1775608244787,-150.0,0.00013973,2]
[420007944,1775608244797,-166.66,0.00013973,2]
[420007945,1775608244806,-835.3838488,0.00013976,2]
[420007946,1775608244816,-2858.80277752,0.0001399,2]
[420007947,1775608244825,-150.0,0.00014,2]
[420007948,1775608244835,-500.0,0.0001406,2]
[420007949,1775608244844,-166.66,0.0001411,2]
[420007950,1775608244854,-1655.84153867,0.00014154,2]
[420007951,1775608244863,-2500.0,0.00014155,2]
[420007952,1775608244873,-2500.0,0.00014155,2]
[420007953,1775608244882,-2500.0,0.00014155,2]
[420007954,1775608244892,-2500.0,0.00014155,2]
[420007955,1775608244902,-2500.0,0.00014155,2]
[420007956,1775608244912,-600.0,0.00014155,2]
[420007957,1775608244921,-300.0,0.00014155,2]
[420007958,1775608244931,-300.0,0.00014155,2]
[420007959,1775608244940,-300.0,0.00014155,2]
[420007960,1775608244950,-300.0,0.00014155,2]
[420007961,1775608244959,-300.0,0.00014155,2]
[420007962,1775608244969,-500.0,0.00014155,2]
[420007963,1775608244979,-500.0,0.00014155,2]
[420007964,1775608244988,-500.0,0.00014155,2]
[420007965,1775608244998,-500.0,0.00014155,2]
[420007966,1775608245008,-500.0,0.00014155,2]
[420007967,1775608245017,-250.0,0.00014155,2]
[420007968,1775608245027,-5000.0,0.00014155,2]
[420007969,1775608245037,-600.0,0.00014155,2]
[420007970,1775608245047,-195.0,0.00014155,2]
[420007971,1775608245056,-250.0,0.00014155,2]
[420007972,1775608245066,-300.0,0.00014155,2]
[420007973,1775608245076,-835.3838488,0.00014217,2]
[420007974,1775608245086,-166.66,0.00014247,2]
[420007975,1775608245096,-150.0,0.00014247,2]
[420007976,1775608245106,-150.0,0.00014247,2]
[420007977,1775608245116,-16379.62,0.00014285,2]
[420007978,1775608245126,-300.0,0.00014295,2]
[420007979,1775608245136,-420.0,0.00014295,2]
[420007980,1775608245146,-200.0,0.00014302,2]
[420007981,1775608245156,-1000.0,0.00014321,2]
[420007982,1775608245166,-1000.0,0.00014321,2]
[420007983,1775608245176,-1000.0,0.00014321,2]
[420007984,1775608245186,-1000.0,0.00014321,2]
[420007985,1775608245196,-1000.0,0.00014321,2]
[420007986,1775608245206,-1000.0,0.00014321,2]
[420007987,1775608245216,-1680.0,0.00014331,2]
[420007988,1775608245226,-569.75,0.00014332,2]
[420007989,1775608245236,-195.0,0.00014332,2]
[420007990,1775608245246,-500.0,0.00014334,2]
[420007991,1775608245256,-166.66,0.00014384,2]
[420007992,1775608245266,-150.0,0.000144,2]
[420007993,1775608245275,-150.0,0.000144,2]
[420007994,1775608245285,-150.0,0.000144,2]
[420007995,1775608245295,-150.0,0.000144,2]
[420007996,1775608245305,-150.0,0.000144,2]
[420007997,1775608245314,-150.0,0.000144,2]
[420007998,1775608245325,-150.0,0.000144,2]
[420007999,1775608245335,-150.0,0.000144,2]
[420008000,1775608245345,-1655.84153867,0.00014403,2]
[420008001,1775608245355,-506.0,0.00014412,3]
[420008002,1775608245365,-500.0,0.00014433,2]
[420008003,1775608245375,-835.3838488,0.00014457,2]
[420008004,1775608245385,-363.69,0.00014512,2]
[420008005,1775608245395,-500.0,0.0001452,2]
[420008006,1775608245405,-3306.91,0.00014532,2]
[420008007,1775608245416,-569.75,0.00014606,2]
[420008009,1775608245427,-500.0,0.00014637,2]
[420008010,1775608245436,-1655.84153867,0.00014653,2]
[420008011,1775608245447,-160.44495527,0.00014727,2]
[420008012,1775608245459,-255.0,0.00014811,2]
[420008013,1775608245469,-500.0,0.00014838,2]
[420008014,1775608245480,-500.0,0.00014838,2]
[420008015,1775608245490,-500.0,0.00014868,2]
[420008016,1775608245500,-500.0,0.00014868,2]
[420008017,1775608245510,-500.0,0.00014868,2]
[420008018,1775608245519,-500.0,0.00014868,2]
[420008019,1775608245529,-500.0,0.00014868,2]
[420008020,1775608245538,-500.0,0.00014868,2]
[420008021,1775608245548,-309.77,0.0001487,2]
[420008022,1775608245558,-400.0,0.00014876,2]
[420008023,1775608245568,-569.75,0.0001488,2]
[420008024,1775608245578,-400.0,0.00014882,2]
[420008025,1775608245588,-296.99,0.00014882,2]
[420008026,1775608245599,-150.0,0.00014894,2]
[420008027,1775608245608,-150.0,0.00014894,2]
[420008028,1775608245618,-200.0,0.00014894,2]
[420008029,1775608245978,-150.0,0.00014894,2]
[420008030,1775608245997,-500.0,0.00014894,2]
[420008031,1775608246008,-500.0,0.00014894,2]
[420008032,1775608246018,-500.0,0.00014894,2]
[420008033,1775608246028,-500.0,0.00014894,2]
[420008034,1775608246038,-500.0,0.00014894,2]
[420008035,1775608246050,-500.0,0.00014894,2]
[420008036,1775608246060,-500.0,0.00014894,2]
[420008037,1775608246071,-500.0,0.00014894,2]
[420008038,1775608246080,-500.0,0.00014894,2]
[420008039,1775608246090,-265.57917069,0.00014894,2]
[420008040,1775608246100,-160.0,0.00014895,7]
[420008041,1775608246110,-637.546511,0.00014895,7]
[420008042,1775608246121,-1115.093022,0.00014895,7]
[420008043,1775608246131,-160.0,0.00014895,7]
[420008044,1775608246141,-662.913428,0.00014895,7]
[420008045,1775608246151,-1165.826856,0.00014895,7]
[420008046,1775608246160,-160.0,0.00014895,2]
[420008047,1775608246170,-587.43634,0.00014895,2]
[420008048,1775608246179,-202.504079,0.00014896,7]
[420008049,1775608246189,-160.0,0.00014896,2]
[420008050,1775608246199,-317.44923,0.00014896,2]
[420008051,1775608246209,-474.898461,0.00014896,2]
[420008052,1775608246220,-171.79,0.00014897,2]
[420008053,1775608246231,-1655.84153867,0.00014902,2]
[420008054,1775608246241,-300.64,0.00014903,2]
[420008055,1775608246251,-386.53,0.00014909,2]
[420008056,1775608246262,-246.45,0.00014937,2]
[420008057,1775608246273,-400.0,0.00014943,2]
[420008058,1775608246283,-400.0,0.00014949,2]
[420008059,1775608246292,-154.52,0.00014949,2]
[420008060,1775608246303,-500.0,0.00014978,2]
[420008061,1775608246313,-500.0,0.00014978,2]
[420008062,1775608246324,-500.0,0.00014978,2]
[420008063,1775608246334,-500.0,0.00014978,2]
[420008064,1775608246343,-500.0,0.00014978,2]
[420008065,1775608246354,-500.0,0.00014978,2]
[420008066,1775608246365,-318.06583411,0.0001498,2]
[420008067,1775608246374,-500.0,0.0001498,2]
[420008068,1775608246385,-500.0,0.0001498,2]
[420008069,1775608246395,-300.0,0.00015,2]
[420008070,1775608246405,-500.0,0.00015039,2]
[420008071,1775608246415,-500.0,0.00015039,2]
[420008072,1775608246425,-500.0,0.00015039,2]
[420008073,1775608246435,-614.88,0.00015039,2]
[420008074,1775608246445,-500.0,0.00015039,2]
[420008075,1775608246455,-500.0,0.00015039,2]
[420008076,1775608246466,-1000.0,0.00015068,2]
[420008077,1775608246477,-780.14,0.00015068,2]
[420008078,1775608246486,-1655.84153867,0.00015152,2]
[420008079,1775608246496,-569.75,0.00015154,2]
[420008080,1775608246505,-500.0,0.00015199,2]
[420008081,1775608246515,-500.0,0.00015199,2]
[420008082,1775608246524,-500.0,0.00015199,2]
[420008083,1775608246534,-500.0,0.00015199,2]
[420008084,1775608246544,-578.20924308,0.00015199,2]
[420008085,1775608246554,-500.0,0.00015199,2]
[420008086,1775608246564,-200.0,0.00015199,2]
[420008087,1775608246574,-500.0,0.00015199,2]
[420008088,1775608246584,-623.58710448,0.00015199,2]
[420008089,1775608246593,-500.0,0.00015199,2]
[420008090,1775608246604,-500.0,0.00015199,2]
[420008091,1775608246614,-500.0,0.00015199,2]
[420008092,1775608246625,-199.01,0.00015199,2]
[420008093,1775608246634,-174.61919141,0.00015199,2]
[420008094,1775608246644,-151.0,0.00015199,2]
[420008095,1775608246653,-743.50770149,0.00015199,2]
[420008096,1775608246664,-170.0,0.00015199,2]
[420008097,1775608246674,-170.0,0.00015199,2]
[420008098,1775608246684,-170.0,0.00015199,2]
[420008099,1775608246694,-170.0,0.00015199,2]
[420008100,1775608246705,-170.0,0.00015199,2]
[420008101,1775608246715,-279.9045709,0.00015199,2]
[420008102,1775608246725,-170.0,0.00015199,2]
[420008103,1775608246735,-170.0,0.00015199,2]
[420008104,1775608246744,-170.0,0.00015199,2]
[420008105,1775608246755,-170.0,0.00015199,2]
[420008106,1775608246765,-170.0,0.00015199,2]
[420008107,1775608246774,-170.0,0.00015199,2]
[420008108,1775608246784,-170.0,0.00015199,2]
[420008109,1775608246794,-396.18665132,0.000152,2]
[420008110,1775608246804,-167.8911,0.000152,2]
[420008111,1775608246815,-150.0,0.000152,2]
[420008112,1775608246825,-150.0,0.000152,2]
[420008113,1775608246841,-150.0,0.000152,2]
[420008114,1775608246851,-355.5086474,0.000152,2]
[420008115,1775608246862,-284.43769691,0.00015202,2]
[420008116,1775608246872,-160.0,0.00015231,2]
[420008117,1775608246883,-363.69,0.00015237,2]
[420008118,1775608246892,-151.0,0.00015254,2]
[420008119,1775608246903,-500.0,0.00015258,2]
[420008120,1775608246913,-453.31303788,0.0001529,2]
[420008121,1775608246924,-500.0,0.0001529,2]
[420008122,1775608246934,-500.0,0.0001529,2]
[420008123,1775608246944,-347.07116371,0.0001529,2]
[420008124,1775608246953,-500.0,0.0001529,2]
[420008125,1775608246964,-500.78094914,0.0001529,2]
[420008126,1775608246974,-500.0,0.0001529,2]
[420008127,1775608246985,-500.0,0.0001529,2]
[420008128,1775608246995,-500.0,0.0001529,2]
[420008129,1775608247006,-500.0,0.0001529,2]
[420008130,1775608247016,-413.96,0.00015303,2]
[420008131,1775608247027,-298.61,0.00015303,2]
[420008132,1775608247037,-408.74,0.00015303,2]
[420008133,1775608247047,-429.17572057,0.00015303,2]
[420008134,1775608247058,-435.2,0.00015303,2]
[420008135,1775608247068,-435.21302299,0.00015303,2]
[420008136,1775608247079,-151.0,0.00015309,2]
[420008137,1775608247089,-246.91,0.00015336,2]
[420008138,1775608247099,-400.0,0.00015345,2]
[420008139,1775608247109,-400.0,0.00015354,2]
[420008141,1775608247120,-155.56,0.00015354,2]
[420008142,1775608247130,-151.0,0.00015364,2]
[420008143,1775608247140,-1000.0,0.00015385,2]
[420008144,1775608247150,-1000.0,0.00015385,2]
[420008145,1775608247161,-1100.0,0.000154,5]
[420008146,1775608247171,-1655.84153867,0.00015401,2]
[420008147,1775608247180,-151.0,0.00015419,2]
[420008148,1775608247190,-2287.0,0.0001542,2]
[420008149,1775608247200,-569.75,0.00015428,2]
[420008150,1775608247211,-413.96,0.00015477,2]
[420008151,1775608247221,-2300.0,0.000155,5]
[420008152,1775608247231,-4000.0,0.00015507,2]
[420008153,1775608247241,-1000.0,0.00015526,2]
[420008154,1775608247251,-1000.0,0.00015526,2]
[420008155,1775608247262,-1000.0,0.00015526,2]
[420008156,1775608247272,-1000.0,0.00015526,2]
[420008157,1775608247283,-500.0,0.00015528,2]
[420008158,1775608247293,-1000.0,0.00015528,2]
[420008159,1775608247303,-427.28,0.00015564,2]
[420008160,1775608247313,-2287.0,0.00015565,2]
[420008161,1775608247323,-266.32115958,0.00015585,2]
[420008162,1775608247333,-3500.0,0.000156,5]
[420008163,1775608247343,-350.0,0.00015611,2]
[420008164,1775608247360,-1500.0,0.00015616,2]
[420008165,1775608247370,-308.0,0.00015634,2]
[420008166,1775608247381,-308.0,0.00015638,2]
[420008167,1775608247392,-869.381606,0.0001564,7]
[420008168,1775608247403,-903.972856,0.0001564,7]
[420008169,1775608247414,-432.885314,0.00015641,2]
[420008170,1775608247425,-413.96,0.00015651,2]
[420008171,1775608247434,-1655.84153867,0.00015651,2]
[420008172,1775608247445,-587.0,0.00015676,2]
[420008173,1775608247455,-500.0,0.00015699,2]
[420008174,1775608247466,-500.0,0.00015699,2]
[420008175,1775608247476,-492.97835883,0.000157,5]
[420008176,1775608248536,-394.4778,0.000157,5]
[420008177,1775608248568,-3812.54384117,0.000157,5]
[420008178,1775608248578,-569.80971614,0.00015702,2]
[420008179,1775608248588,-506.0,0.00015724,4]
[420008180,1775608248597,-200.0,0.00015747,2]
[420008181,1775608248607,-295.53908993,0.00015747,2]
[420008182,1775608248617,-771.01748645,0.00015747,2]
[420008183,1775608248626,-2351.0,0.00015764,2]
[420008184,1775608248637,-5900.0,0.000158,5]
[420008185,1775608248646,-162.3905,0.0001582,2]
[420008186,1775608248655,-413.96628788,0.00015824,2]
[420008187,1775608248665,-298.61436554,0.00015824,2]
[420008188,1775608248675,-408.74539053,0.00015824,2]
[420008189,1775608248684,-2287.0,0.00015826,2]
[420008190,1775608248694,-162.3905,0.0001583,2]
[420008191,1775608248703,-1000.0,0.00015838,2]
[420008192,1775608248713,-1000.0,0.00015838,2]
[420008193,1775608248722,-1000.0,0.00015838,2]
[420008194,1775608248732,-1000.0,0.00015838,2]
[420008195,1775608248741,-1000.0,0.00015838,2]
[420008196,1775608248750,-1087.30238441,0.00015838,2]
[420008197,1775608248759,-1000.0,0.00015838,2]
[420008198,1775608248769,-500.0,0.00015839,2]
[420008199,1775608248778,-162.3905,0.0001584,2]
[420008200,1775608248788,-2000.0,0.0001584,2]
[420008201,1775608248797,-2000.0,0.0001584,2]
[420008202,1775608248806,-178.63863067,0.00015841,2]
[420008203,1775608248815,-3992.126,0.00015844,2]
[420008204,1775608248825,-234.31,0.00015844,2]
[420008205,1775608248834,-2000.0,0.0001585,2]
[420008206,1775608248843,-500.0,0.00015872,2]
[420008207,1775608248852,-200.0,0.00015872,2]
[420008208,1775608248862,-5000.0,0.00015878,2]
[420008209,1775608248871,-162.3905,0.0001588,2]
[420008210,1775608248881,-162.3905,0.0001588,2]
[420008211,1775608248890,-1000.0,0.00015882,2]
[420008212,1775608248899,-4000.0,0.00015895,2]
[420008213,1775608248908,-1367.0,0.00015899,5]
[420008214,1775608248918,-1100.0,0.000159,5]
[420008215,1775608248928,-1655.84153867,0.000159,2]
[420008216,1775608249400,-1186.11731226,0.000159,2]
[420008217,1775608249411,-6464.0887048,0.000159,2]
[420008218,1775608249421,-201.65583435,0.000159,2]
[420008219,1775608249431,-797.87297816,0.000159,2]
[420008220,1775608249441,-345.52,0.00015901,2]
[420008221,1775608249450,-1500.0,0.00015933,2]
[420008222,1775608249460,-1500.0,0.00015933,2]
[420008223,1775608249469,-308.0,0.00015941,2]
[420008224,1775608249479,-250.0,0.00015945,2]
[420008225,1775608249488,-363.69,0.00015963,2]
[420008226,1775608249498,-500.0,0.00015973,2]
[420008227,1775608249508,-500.0,0.00015973,2]
[420008228,1775608249518,-500.0,0.00015973,2]
[420008229,1775608249527,-500.0,0.00015973,2]
[420008230,1775608249537,-500.0,0.00015973,2]
[420008231,1775608249546,-500.0,0.00015973,2]
[420008232,1775608249555,-500.0,0.00015973,2]
[420008233,1775608249565,-500.0,0.00015973,2]
[420008234,1775608249574,-500.0,0.00015973,2]
[420008235,1775608249585,-500.0,0.00015973,2]
[420008236,1775608249594,-500.0,0.00015973,2]
[420008237,1775608249603,-500.0,0.00015973,2]
[420008238,1775608249613,-500.0,0.00015973,2]
[420008239,1775608249623,-500.0,0.00015973,2]
[420008240,1775608249633,-500.0,0.00015973,2]
[420008241,1775608249642,-500.0,0.00015973,2]
[420008242,1775608249652,-150.0,0.00015974,2]
[420008243,1775608249661,-30922.7092919,0.00015978,2]
[420008244,1775608249671,-151.0,0.00015997,2]
[420008245,1775608249681,-500.0,0.00015997,2]
[420008246,1775608249691,-500.0,0.00015997,2]
[420008247,1775608249700,-614.88,0.00015997,2]
[420008248,1775608249710,-500.0,0.00015997,2]
[420008249,1775608249725,-500.0,0.00015997,2]
[420008250,1775608249735,-500.0,0.00015997,2]
[420008251,1775608249745,-372.26189109,0.00015997,2]
[420008252,1775608249754,-500.0,0.00015998,2]
[420008253,1775608249764,-707.05489197,0.00015998,2]
[420008254,1775608249774,-251.97827434,0.00015998,2]
[420008255,1775608249785,-500.0,0.00015998,2]
[420008256,1775608249794,-1322.0,0.00015999,5]
[420008257,1775608249804,-666.0,0.00015999,2]
[420008258,1775608249813,-1272.38742045,0.00015999,5]
[420008259,1775608249823,-300.00000009,0.00015999,2]
[420008260,1775608249834,-57636.64122745,0.00015999,2]
[420008261,1775608249843,-500.0,0.00015999,2]
[420008262,1775608249853,-500.0,0.00015999,2]
[420008263,1775608249862,-500.0,0.00015999,2]
[420008264,1775608249871,-500.0,0.00015999,2]
[420008265,1775608249881,-500.0,0.00015999,2]
[420008266,1775608249891,-500.0,0.00015999,2]
[420008267,1775608249900,-500.0,0.00015999,2]
[420008268,1775608249910,-500.0,0.00015999,2]
[420008269,1775608249920,-500.0,0.00015999,2]
[420008270,1775608249930,-500.0,0.00015999,2]
[420008271,1775608249939,-500.0,0.00015999,2]
[420008272,1775608249948,-500.0,0.00015999,2]
[420008273,1775608249957,-219.99453829,0.00015999,2]
[420008274,1775608249967,-500.0,0.00015999,2]
[420008275,1775608249978,-497.49770464,0.00015999,2]
[420008276,1775608249988,-614.88,0.00015999,2]
[420008277,1775608249997,-614.88,0.00015999,2]
[420008278,1775608250007,-614.88,0.00015999,2]
[420008279,1775608250016,-614.88,0.00015999,2]
[420008280,1775608250027,-614.88,0.00015999,2]
[420008281,1775608250037,-614.88,0.00015999,2]
[420008282,1775608250047,-614.88,0.00015999,2]
[420008283,1775608250056,-614.88,0.00015999,2]
[420008284,1775608250069,-614.88,0.00015999,2]
[420008285,1775608250079,-614.88,0.00015999,2]
[420008286,1775608250089,-614.88,0.00015999,2]
[420008287,1775608250099,-614.88,0.00015999,2]
[420008288,1775608250108,-614.88,0.00015999,2]
[420008289,1775608250118,-614.88,0.00015999,2]
[420008290,1775608250128,-614.88,0.00015999,2]
[420008291,1775608250137,-614.88,0.00015999,2]
[420008292,1775608250149,-614.88,0.00015999,2]
[420008293,1775608250159,-614.88,0.00015999,2]
[420008294,1775608250169,-614.88,0.00015999,2]
[420008295,1775608250179,-614.88,0.00015999,2]
[420008296,1775608250189,-614.88,0.00015999,2]
[420008297,1775608250199,-614.99958324,0.00015999,2]
[420008298,1775608250208,-500.0,0.00015999,2]
[420008299,1775608250218,-500.0,0.00015999,2]
[420008300,1775608250228,-500.0,0.00015999,2]
[420008301,1775608250238,-500.0,0.00015999,2]
[420008302,1775608250248,-500.0,0.00015999,2]
[420008303,1775608250257,-500.0,0.00015999,2]
[420008304,1775608250267,-500.0,0.00015999,2]
[420008305,1775608250277,-500.0,0.00015999,2]
[420008306,1775608250287,-500.0,0.00015999,2]
[420008307,1775608250297,-500.0,0.00015999,2]
[420008308,1775608250306,-500.0,0.00015999,2]
[420008309,1775608250316,-166.72,0.00015999,2]
[420008310,1775608250326,-500.0,0.00015999,2]
[420008311,1775608250336,-436.35,0.00015999,2]
[420008312,1775608250346,-500.0,0.00015999,2]
[420008313,1775608250356,-500.0,0.00015999,2]
[420008314,1775608250366,-396.18600857,0.00015999,2]
[420008315,1775608250376,-510.24,0.00015999,2]
[420008316,1775608250385,-374.53172276,0.00015999,2]
[420008317,1775608250396,-150.0,0.00016,2]
[420008318,1775608250406,-150.0,0.00016,2]
[420008319,1775608250416,-150.0,0.00016,2]
[420008320,1775608250427,-150.0,0.00016,2]
[420008321,1775608250437,-155.27197355,0.00016,2]
[420008322,1775608250446,-207.58250816,0.00016,2]
[420008323,1775608250457,-151.68583305,0.00016,2]
[420008324,1775608250467,-154.21213872,0.00016,2]
[420008325,1775608250477,-434010.86681942,0.00016,2]
[420008326,1775608250955,-5974.08993517,0.00013599,2]
[420008327,1775608250965,-574.85278522,0.00014698,2]
[420008328,1775608250977,-260.53106358,0.00014698,2]
[420008329,1775608250987,-341.43384019,0.00014895,2]
[420008330,1775608251043,-673.43884081,0.00014895,2]
[420008331,1775608251053,-45.36115919,0.0001564,2]
[420008332,1775608251083,-755.68839581,0.0001564,2]
[420008333,1775608251092,-345.84736469,0.000159,2]
[420008334,1775608251155,-582.71837347,0.000159,2]
[420008335,1775608251165,-95.3766229,0.00016,2]
[420008336,1775608251195,-4768.92885423,0.00016,2]
[420008337,1775608251207,-109340.64504924,0.00016,2]
[420008338,1775608251217,-131098.72460262,0.00016,2]
[420008339,1775608251229,-64854.41339961,0.00016,2]
[420008341,1775608310147,355.0,0.000114,5]
[420008345,1775608621409,-160.0,0.00011659,2]
[420008346,1775608621441,-152.0,0.00011659,2]
[420008347,1775608628789,152.0,0.00011659,2]
[420008348,1775608632669,162.0,0.00011659,2]
[420008349,1775608692846,154.0,0.00011659,2]
[420008350,1775608695374,159.0,0.00011659,2]
[420008351,1775608752086,154.0,0.00011659,2]
[420008352,1775608811357,154.0,0.00011659,2]
[420008353,1775608814620,160.0,0.00011659,2]
[420008354,1775608856521,159.65,0.00011659,2]
[420008355,1775608866798,154.0,0.00011659,2]
[420008357,1775608882514,47647.00682561,0.000161,120]
[420008358,1775608934732,10000.0,0.00011659,2]
[420008360,1775609041142,0.01,0.00010408,2]
[420008361,1775609041171,179.02,0.00010408,2]
[420008362,1775609041338,179.03,0.00011449,2]
[420008363,1775609062785,171.0,6.847e-05,2]
[420008364,1775609063042,156.0,6.847e-05,2]
[420008365,1775609063332,156.0,6.847e-05,2]
[420008366,1775609063609,156.0,6.847e-05,2]
[420008367,1775609063924,156.0,6.847e-05,2]
[420008368,1775609064167,156.0,6.847e-05,2]
[420008369,1775609064418,156.0,6.847e-05,2]
[420008370,1775609064697,156.0,6.847e-05,2]
[420008371,1775609065125,156.0,6.847e-05,2]
[420008372,1775609065368,156.0,6.847e-05,2]
[420008373,1775609065649,156.0,6.847e-05,2]
[420008374,1775609065928,156.0,6.847e-05,2]
[420008375,1775609066178,156.0,6.847e-05,2]
[420008376,1775609066422,156.0,6.847e-05,2]
[420008377,1775609066664,156.0,6.847e-05,2]
[420008378,1775609066906,156.0,6.847e-05,2]
[420008379,1775609067179,156.0,6.847e-05,2]
[420008380,1775609067457,156.0,6.847e-05,2]
[420008381,1775609067705,156.0,6.847e-05,2]
[420008382,1775609067949,156.0,6.847e-05,2]
[420008383,1775609068199,156.0,6.847e-05,2]
[420008384,1775609068443,156.0,6.847e-05,2]
[420008385,1775609068691,156.0,6.847e-05,2]
[420008386,1775609069612,167.0,6.7e-05,2]
[420008387,1775609072776,156.0,6.7e-05,2]
[420008388,1775609072816,156.0,6.7e-05,2]
[420008389,1775609072935,156.0,6.7e-05,2]
[420008390,1775609073071,156.0,6.7e-05,2]
[420008391,1775609073322,156.0,6.7e-05,2]
[420008392,1775609073567,156.0,6.7e-05,2]
[420008393,1775609074608,156.0,6.7e-05,2]
[420008394,1775609074779,156.0,6.7e-05,2]
[420008395,1775609074857,156.0,6.7e-05,2]
[420008396,1775609075561,156.0,6.7e-05,2]
[420008397,1775609075824,156.0,6.7e-05,2]
[420008398,1775609076077,156.0,6.7e-05,2]
[420008399,1775609076360,156.0,6.7e-05,2]
[420008400,1775609076609,156.0,6.7e-05,2]
[420008401,1775609076869,156.0,6.7e-05,2]
[420008402,1775609077119,156.0,6.7e-05,2]
[420008403,1775609077377,156.0,6.7e-05,2]
[420008404,1775609077633,156.0,6.7e-05,2]
[420008405,1775609107089,160.0,0.00011659,2]
[420008406,1775609107599,2903.96,0.000113,5]
[420008407,1775609107623,2629.04,0.000113,5]
[420008408,1775609108763,158.0,0.00011659,2]
[420008409,1775609166337,158.0,0.00011659,2]
[420008410,1775609228645,158.0,0.000115,2]
[420008411,1775609287901,159.0,0.00011659,2]
[420008412,1775609354550,500.0,0.000111,5]
[420008415,1775609411105,160.0,0.00011659,2]
[420008428,1775609431591,-600.0,0.00011659,2]
[420008429,1775609431602,-233.42755509,0.0001166,2]
[420008430,1775609431650,-16.57244491,0.0001166,2]
[420008431,1775609431661,-383.87755509,0.0001166,2]
[420008432,1775609431675,-382.63590735,0.0001166,2]
[420008433,1775609431688,-245.48653756,0.0001166,2]
[420008434,1775609431699,-222.17,0.00011798,2]
[420008435,1775609431709,-271.54,0.00011807,2]
[420008436,1775609431719,-95.14385694,0.00012266,2]
[420008437,1775609431740,-92.01737697,0.00012266,2]
[420008438,1775609431751,-179.03,0.0001249,2]
[420008439,1775609431763,-600.0,0.00012825,2]
[420008440,1775609431774,-250.0,0.00012825,2]
[420008441,1775609431786,-265.0,0.00012867,2]
[420008442,1775609431797,-1200.0,0.00012867,2]
[420008443,1775609431808,-500.0,0.00012868,2]
[420008444,1775609431818,-500.0,0.00012868,2]
[420008445,1775609431829,-500.0,0.00012868,2]
[420008446,1775609431841,-500.0,0.00012868,2]
[420008447,1775609431852,-500.0,0.00012868,2]
[420008448,1775609431862,-500.0,0.00012868,2]
[420008449,1775609431873,-500.0,0.00012868,2]
[420008450,1775609431884,-500.0,0.00012868,2]
[420008451,1775609431894,-500.0,0.00012868,2]
[420008452,1775609431905,-3324.17,0.00012895,2]
[420008453,1775609431916,-1090.0777,0.00012917,2]
[420008454,1775609431927,-150.0,0.00013016,2]
[420008455,1775609431938,-486.65,0.00013025,2]
[420008456,1775609431949,-506.0,0.000131,2]
[420008457,1775609431959,-500.0,0.00013168,2]
[420008458,1775609431969,-1500.0,0.00013269,2]
[420008460,1775609431980,-6586.03838865,0.00013431,2]
[420008462,1775609431990,-2954.77192947,0.0001349,2]
[420008464,1775609432003,-49944.04165563,0.0001349,2]